bitfinex/quotes_BTCUSD_20241223
["timestamp","ask_amount","ask_price","bid_price","bid_amount"]
[1734962793102,0.04209285,95271.0,95262.0,0.00137728]
[1734962793311,0.209941,95265.0,95262.0,0.00137728]
[1734962793510,0.209931,95269.0,95261.0,0.12758636]
[1734962793774,0.209943,95264.0,95263.0,0.00103076]
[1734962793984,0.209943,95264.0,95262.0,0.00103296]
[1734962794195,0.209943,95264.0,95259.0,0.001]
[1734962794378,0.209943,95264.0,95262.0,0.004]
[1734962794552,0.209943,95264.0,95263.0,0.00485749]
[1734962794831,0.209953,95259.0,95257.0,0.18621412]
[1734962795012,0.209953,95259.0,95253.0,0.00033133]
[1734962795013,0.209964,95254.0,95253.0,0.00033133]
[1734962795213,0.10398632,95264.0,95253.0,0.00033133]
[1734962795415,0.023,95263.0,95253.0,0.00033133]
[1734962795738,0.023,95263.0,95262.0,0.002]
[1734962795739,0.1737705,95263.0,95262.0,0.002]
[1734962796131,0.209964,95255.0,95253.0,0.00033133]
[1734962796334,0.209959,95257.0,95253.0,0.00033133]
[1734962796947,0.209959,95257.0,95254.0,0.00105059]
[1734962797726,0.209959,95257.0,95255.0,0.00486078]
[1734962797927,0.1737705,95263.0,95255.0,0.00486078]
[1734962798167,0.3837165,95263.0,95255.0,0.00486078]
[1734962798321,0.3837165,95263.0,95254.0,0.009]
[1734962798527,0.1737705,95263.0,95256.0,0.00104619]
[1734962798740,0.1737705,95263.0,95254.0,0.012]
[1734962798946,0.1737705,95263.0,95257.0,0.00104398]
[1734962799151,0.01688748,95264.0,95254.0,0.009]
[1734962799356,0.209944,95264.0,95258.0,0.00104178]
[1734962799659,0.209944,95264.0,95254.0,0.001]
[1734962799843,0.209944,95264.0,95259.0,0.00103957]
[1734962800051,0.02065355,95272.0,95254.0,0.001]
[1734962800254,0.209955,95259.0,95254.0,0.007]
[1734962800469,0.209945,95263.0,95254.0,0.007]
[1734962800920,0.209947,95262.0,95255.0,0.00104839]
[1734962801331,0.209947,95262.0,95254.0,0.008]
[1734962801542,0.209947,95262.0,95256.0,0.00104619]
[1734962801719,0.209947,95262.0,95254.0,0.009]
[1734962801932,0.209947,95262.0,95257.0,0.00104398]
[1734962802131,0.209947,95262.0,95254.0,0.008]
[1734962802352,0.209947,95262.0,95258.0,0.00104178]
[1734962802553,0.209947,95262.0,95254.0,0.01]
[1734962802749,0.209958,95257.0,95254.0,0.01]
[1734962802951,0.419916,95257.0,95254.0,0.008]
[1734962803118,0.209958,95257.0,95253.0,0.00033133]
[1734962803518,0.209958,95257.0,95254.0,0.01086641]
[1734962803721,0.209958,95257.0,95254.0,0.00486641]
[1734962804140,0.209958,95257.0,95254.0,0.01386641]
[1734962804336,0.209958,95257.0,95254.0,0.00486641]
[1734962804847,0.209958,95257.0,95254.0,0.01586641]
[1734962805075,0.209958,95257.0,95254.0,0.00786641]
[1734962805359,0.419916,95257.0,95254.0,0.00486641]
[1734962805564,0.419916,95257.0,95254.0,0.002]
[1734962806179,0.419916,95257.0,95254.0,0.01]
[1734962806590,0.16697282,95256.0,95254.0,0.01]
[1734962806795,0.5050244,95255.0,95254.0,0.01]
[1734962807017,0.1720624,95249.0,95248.0,0.02094604]
[1734962807256,0.29920855,95249.0,95248.0,0.01995205]
[1734962807457,0.40319487,95249.0,95248.0,0.01995205]
[1734962807867,0.1220624,95248.0,95247.0,0.14141819]
[1734962808090,0.60902672,95248.0,95247.0,0.05742619]
[1734962808203,0.0220624,95245.0,95244.0,0.18621412]
[1734962808412,0.1220624,95243.0,95242.0,0.21176865]
[1734962808613,0.0220624,95235.0,95234.0,0.28304157]
[1734962808813,0.0220624,95235.0,95226.0,0.41653656]
[1734962808814,0.3820864,95227.0,95226.0,0.41653656]
[1734962809035,0.3820864,95227.0,95190.0,0.0779376]
[1734962809036,0.210085,95200.0,95190.0,0.0779376]
[1734962809330,0.173,95223.0,95190.0,0.0779376]
[1734962809529,0.210072,95206.0,95191.0,0.210103]
[1734962810139,0.210072,95206.0,95190.0,0.0779376]
[1734962810341,0.21023171,95206.0,95190.0,0.0779376]
[1734962810544,0.00015971,95206.0,95190.0,0.0779376]
[1734962810801,0.00315971,95206.0,95190.0,0.0779376]
[1734962810931,0.00015971,95206.0,95190.0,0.0779376]
[1734962811175,0.210073,95205.0,95190.0,0.0779376]
[1734962811781,0.210083,95201.0,95190.0,0.0779376]
[1734962812083,0.210075,95204.0,95190.0,0.2880426]
[1734962812281,0.00215971,95206.0,95204.0,0.2880106]
[1734962812487,0.002,95205.0,95204.0,0.2880106]
[1734962812842,0.004,95205.0,95204.0,0.29603723]
[1734962813416,0.002,95205.0,95204.0,0.29603723]
[1734962814188,0.00115971,95206.0,95204.0,0.30303723]
[1734962815199,0.26536371,95206.0,95204.0,0.30303723]
[1734962815409,0.26436371,95206.0,95204.0,0.29903723]
[1734962815861,0.001,95205.0,95204.0,0.30503723]
[1734962816075,0.001,95205.0,95204.0,0.09496423]
[1734962816275,0.26736371,95206.0,95204.0,0.08596423]
[1734962816702,0.27236371,95206.0,95204.0,0.00802663]
[1734962817051,0.27236371,95206.0,95192.0,0.2279376]
[1734962817052,0.210073,95205.0,95192.0,0.2279376]
[1734962817325,0.215073,95205.0,95193.0,0.21813437]
[1734962817554,0.210073,95205.0,95193.0,0.21813437]
[1734962817762,0.214073,95205.0,95193.0,0.21813437]
[1734962818280,0.210073,95205.0,95193.0,0.21813437]
[1734962818706,0.211073,95205.0,95193.0,0.21813437]
[1734962819536,0.211073,95205.0,95193.0,0.21913437]
[1734962819965,0.001,95205.0,95193.0,0.21913437]
[1734962820868,0.210075,95204.0,95193.0,0.00903537]
[1734962821085,0.0808,95202.0,95193.0,0.00903537]
[1734962821302,0.210097,95194.0,95193.0,0.00903537]
[1734962821520,0.60914572,95194.0,95193.0,0.001]
[1734962821725,0.62991656,95194.0,95193.0,0.001]
[1734962821932,0.75078144,95194.0,95193.0,0.001]
[1734962822140,0.210119,95184.0,95161.0,0.0001708]
[1734962822362,0.33710532,95184.0,95161.0,0.0001708]
[1734962822792,0.41290532,95184.0,95161.0,0.0001708]
[1734962822999,0.49842439,95184.0,95161.0,0.0001708]
[1734962823210,0.71628679,95184.0,95161.0,0.0001708]
[1734962823414,0.210156,95167.0,95161.0,0.0001708]
[1734962823627,0.31414232,95167.0,95161.0,0.0001708]
[1734962823842,0.41163345,95167.0,95161.0,0.0001708]
[1734962824055,0.21013,95179.0,95161.0,0.0001708]
[1734962824056,0.37477393,95184.0,95161.0,0.0001708]
[1734962824265,0.003,95194.0,95161.0,0.0001708]
[1734962824482,0.210101,95192.0,95170.0,0.10169511]
[1734962824689,0.00015968,95194.0,95181.0,0.210124]
[1734962825123,0.00015968,95194.0,95184.0,0.210119]
[1734962825337,0.00015968,95194.0,95182.0,0.00708084]
[1734962825543,0.25213297,95193.0,95185.0,0.00708115]
[1734962825758,0.210099,95193.0,95183.0,0.0059008]
[1734962825962,0.00315968,95194.0,95186.0,0.0779376]
[1734962826253,0.00315968,95194.0,95192.0,0.0779376]
[1734962826456,0.00315968,95194.0,95187.0,0.17958632]
[1734962826457,0.00315968,95194.0,95193.0,0.33297431]
[1734962826662,0.00315968,95194.0,95193.0,0.54782176]
[1734962827086,0.209992,95242.0,95205.0,0.5138106]
[1734962827292,0.09132199,95248.0,95205.0,0.61779692]
[1734962827496,0.01685956,95246.0,95205.0,0.67146209]
[1734962827721,0.24930318,95206.0,95205.0,1.20746209]
[1734962827861,0.24035457,95206.0,95205.0,1.23046209]
[1734962828293,0.2163535,95206.0,95205.0,1.43046209]
[1734962828524,0.2163535,95206.0,95205.0,1.33046209]
[1734962828714,0.2163535,95206.0,95205.0,1.22952449]
[1734962828914,0.2163535,95206.0,95205.0,1.15966209]
[1734962830116,0.2173535,95206.0,95205.0,1.16666209]
[1734962830324,0.2163535,95206.0,95205.0,1.15966209]
[1734962830529,0.2163535,95206.0,95205.0,0.93386209]
[1734962830742,0.2163535,95206.0,95205.0,0.93786209]
[1734962831369,0.2163535,95206.0,95205.0,1.08786209]
[1734962831691,0.2163535,95206.0,95205.0,1.11086209]
[1734962831895,0.1953465,95206.0,95205.0,1.29236209]
[1734962832607,0.1943465,95206.0,95205.0,1.28836209]
[1734962832824,0.1953465,95206.0,95205.0,1.28836209]
[1734962832969,0.1953465,95206.0,95205.0,1.26536209]
[1734962833169,0.1943465,95206.0,95205.0,1.26536209]
[1734962833792,0.1943465,95206.0,95205.0,1.26636209]
[1734962833962,0.1943465,95206.0,95205.0,1.27036209]
[1734962834170,0.1943465,95206.0,95205.0,1.17036209]
[1734962834381,0.1943465,95206.0,95205.0,1.16536209]
[1734962834734,0.1943465,95206.0,95205.0,1.16736209]
[1734962835081,0.1943465,95206.0,95205.0,0.72936209]
[1734962835326,0.1943465,95206.0,95205.0,0.62936209]
[1734962835738,0.1953465,95206.0,95205.0,0.63536209]
[1734962835906,0.1943465,95206.0,95205.0,0.62936209]
[1734962836349,0.1943465,95206.0,95205.0,0.63136209]
[1734962836540,0.1943465,95206.0,95205.0,0.62936209]
[1734962836986,0.1943465,95206.0,95205.0,0.63136209]
[1734962838819,0.1943465,95206.0,95205.0,0.62936209]
[1734962839846,0.1943465,95206.0,95205.0,0.63136209]
[1734962840043,0.1943465,95206.0,95205.0,0.62936209]
[1734962840406,0.1943465,95206.0,95205.0,0.63136209]
[1734962840592,0.1943465,95206.0,95205.0,0.62936209]
[1734962840788,0.1943465,95206.0,95205.0,0.15586517]
[1734962841169,0.1943465,95206.0,95205.0,0.00586517]
[1734962841606,0.1943465,95206.0,95205.0,0.33778909]
[1734962842217,0.1943465,95206.0,95205.0,0.33978909]
[1734962842417,0.1943465,95206.0,95205.0,0.33778909]
[1734962842621,0.1943465,95206.0,95205.0,0.41708909]
[1734962843042,0.1943465,95206.0,95205.0,0.41508909]
[1734962843280,0.1943465,95206.0,95205.0,0.42108909]
[1734962843482,0.1943465,95206.0,95205.0,0.54408909]
[1734962843688,0.06952225,95206.0,95205.0,0.55601665]
[1734962843893,0.04365046,95206.0,95205.0,0.55401665]
[1734962844095,0.04465046,95206.0,95205.0,1.09501665]
[1734962844511,0.02364346,95206.0,95205.0,1.09601665]
[1734962845332,0.02264346,95206.0,95205.0,1.09101665]
[1734962845536,0.02364346,95206.0,95205.0,1.09701665]
[1734962845745,0.001,95206.0,95205.0,1.09701665]
[1734962845946,8.55e-05,95249.0,95233.0,0.210011]
[1734962846150,8.55e-05,95249.0,95233.0,0.39193492]
[1734962846352,8.55e-05,95249.0,95233.0,0.39754077]
[1734962847085,0.00324544,95234.0,95233.0,0.39754077]
[1734962847515,0.00024544,95234.0,95233.0,0.39754077]
[1734962847926,0.00324544,95234.0,95233.0,0.39754077]
[1734962848541,0.00724544,95234.0,95233.0,0.00560585]
[1734962848738,0.08994544,95234.0,95233.0,0.00560585]
[1734962848999,0.00724544,95234.0,95211.0,0.0779376]
[1734962849193,0.00724544,95234.0,95233.0,0.00560585]
[1734962849194,0.00824544,95234.0,95233.0,0.00560585]
[1734962849385,0.00024544,95234.0,95211.0,0.0779376]
[1734962849587,0.210011,95233.0,95211.0,0.0779376]
[1734962849767,0.210028,95226.0,95211.0,0.2879966]
[1734962850162,0.0492,95231.0,95205.0,0.150171]
[1734962850368,0.0492,95231.0,95206.0,0.10398632]
[1734962850540,0.210065,95209.0,95205.0,0.000171]
[1734962850751,0.21002,95229.0,95205.0,0.000171]
[1734962850958,0.10398632,95228.0,95205.0,0.000171]
[1734962851161,0.210036,95222.0,95206.0,0.21007]
[1734962851540,0.210045,95218.0,95206.0,0.21007]
[1734962851759,0.001,95226.0,95205.0,0.000171]
[1734962851955,0.13100349,95225.0,95205.0,0.000171]
[1734962852160,0.210057,95212.0,95211.0,0.001]
[1734962852313,0.21007,95206.0,95205.0,0.000171]
[1734962852914,0.36075632,95206.0,95205.0,0.000171]
[1734962853130,0.44910979,95206.0,95205.0,0.000171]
[1734962853330,0.36175632,95206.0,95205.0,0.000171]
[1734962853955,0.36075632,95206.0,95205.0,0.000171]
[1734962854562,0.001,95212.0,95205.0,0.000171]
[1734962854732,0.210035,95222.0,95205.0,0.000171]
[1734962854940,0.0474,95223.0,95205.0,0.000171]
[1734962855131,0.004,95206.0,95205.0,0.000171]
[1734962855361,0.210037,95221.0,95205.0,0.000171]
[1734962855616,0.210016,95231.0,95215.0,0.210049]
[1734962856019,0.210016,95231.0,95210.0,0.15269877]
[1734962856020,0.210028,95226.0,95211.0,0.210059]
[1734962856586,0.001,95221.0,95211.0,0.210059]
[1734962857039,0.0421056,95221.0,95205.0,0.000171]
[1734962857214,0.210062,95210.0,95205.0,0.000171]
[1734962858112,0.210062,95210.0,95206.0,0.00572713]
[1734962858313,0.210062,95210.0,95205.0,0.000171]
[1734962858511,0.210066,95208.0,95205.0,0.000171]
[1734962858831,0.16927775,95207.0,95205.0,0.003171]
[1734962859031,0.16927775,95207.0,95205.0,0.001171]
[1734962859398,0.21007,95206.0,95205.0,0.001171]
[1734962859602,0.21007,95206.0,95205.0,0.000171]
[1734962859952,0.21007,95206.0,95205.0,0.003171]
[1734962860358,0.23023326,95206.0,95205.0,0.003171]
[1734962860557,0.23223326,95206.0,95205.0,0.003171]
[1734962860955,0.21207,95206.0,95205.0,0.003171]
[1734962861305,0.21207,95206.0,95205.0,0.000171]
[1734962861718,0.31705632,95206.0,95205.0,0.000171]
[1734962861863,0.31405632,95206.0,95205.0,0.000171]
[1734962862265,0.31405632,95206.0,95205.0,0.003171]
[1734962862468,0.31405632,95206.0,95205.0,0.000171]
[1734962862875,0.31505632,95206.0,95205.0,0.000171]
[1734962863283,0.31414182,95206.0,95205.0,0.000171]
[1734962863667,0.31614182,95206.0,95205.0,0.000171]
[1734962864429,0.4163729,95206.0,95205.0,0.000171]
[1734962864631,0.5893729,95206.0,95205.0,0.000171]
[1734962864830,0.210119,95184.0,95183.0,0.000171]
[1734962864956,0.31410532,95184.0,95183.0,0.000171]
[1734962865165,0.39380532,95184.0,95183.0,0.000171]
[1734962865973,0.39380532,95184.0,95183.0,0.002171]
[1734962866174,0.39380532,95184.0,95183.0,0.00270546]
[1734962866440,0.39380532,95184.0,95183.0,0.00070546]
[1734962866851,0.52661369,95184.0,95183.0,0.00270546]
[1734962867946,0.44300532,95184.0,95183.0,0.00270546]
[1734962868190,0.44400532,95184.0,95183.0,0.00970546]
[1734962868927,0.75386042,95184.0,95183.0,0.00970546]
[1734962869133,0.210156,95167.0,95166.0,0.0001708]
[1734962869333,0.31414232,95167.0,95166.0,0.00033048]
[1734962869540,0.39137866,95167.0,95166.0,0.00033048]
[1734962869738,0.48894106,95167.0,95166.0,0.00033048]
[1734962870964,0.50951752,95167.0,95166.0,0.00033048]
[1734962871166,0.75951752,95167.0,95166.0,0.00033048]
[1734962871365,0.81161752,95167.0,95166.0,0.00033048]
[1734962871770,0.80561752,95167.0,95166.0,0.00033048]
[1734962871980,0.80861752,95167.0,95166.0,0.00033048]
[1734962872182,0.44074232,95167.0,95166.0,0.00033048]
[1734962872464,0.002,95167.0,95166.0,0.00033048]
[1734962872668,0.003,95167.0,95166.0,0.00033048]
[1734962872874,0.003,95167.0,95166.0,0.08592117]
[1734962872875,0.005,95167.0,95166.0,0.08592117]
[1734962874065,0.002,95167.0,95166.0,0.08592117]
[1734962874491,0.002,95167.0,95166.0,0.19095827]
[1734962874492,0.005,95167.0,95166.0,0.19095827]
[1734962874698,0.002,95167.0,95166.0,0.19095827]
[1734962874873,0.210105,95191.0,95173.0,0.0779376]
[1734962875075,0.210131,95179.0,95167.0,0.0779376]
[1734962875276,0.0220624,95202.0,95174.0,0.00159683]
[1734962875492,0.11643487,95204.0,95176.0,0.0779376]
[1734962875493,0.10398632,95201.0,95176.0,0.0779376]
[1734962875689,8.55e-05,95206.0,95189.0,0.210107]
[1734962876117,8.55e-05,95206.0,95190.0,0.00600619]
[1734962876318,8.55e-05,95206.0,95195.0,0.210094]
[1734962876697,0.210073,95205.0,95196.0,0.0060051]
[1734962876895,8.55e-05,95206.0,95196.0,0.0060051]
[1734962877073,8.55e-05,95206.0,95194.0,0.210097]
[1734962877278,8.55e-05,95206.0,95198.0,0.210087]
[1734962877683,8.55e-05,95206.0,95200.0,0.210084]
[1734962878087,8.55e-05,95206.0,95201.0,0.00600563]
[1734962878557,8.55e-05,95206.0,95193.0,0.2880366]
[1734962878729,8.55e-05,95206.0,95202.0,0.00600573]
[1734962878925,8.55e-05,95206.0,95194.0,0.00155268]
[1734962879166,8.55e-05,95206.0,95193.0,0.2880366]
[1734962879332,8.55e-05,95206.0,95195.0,0.006005]
[1734962879683,8.55e-05,95206.0,95193.0,0.2880366]
[1734962879684,8.55e-05,95206.0,95196.0,0.0060051]
[1734962879834,8.55e-05,95206.0,95201.0,0.003]
[1734962880033,0.210073,95205.0,95201.0,0.003]
[1734962880457,0.210075,95204.0,95201.0,0.003]
[1734962880675,0.42015,95204.0,95201.0,0.003]
[1734962880990,0.52413632,95204.0,95201.0,0.003]
[1734962881152,0.52413632,95204.0,95177.0,0.0779376]
[1734962881153,0.082,95201.0,95177.0,0.0779376]
[1734962881333,0.210106,95190.0,95176.0,0.21029568]
[1734962881537,0.210106,95190.0,95178.0,0.0058544]
[1734962881739,0.210106,95190.0,95177.0,0.0837919]
[1734962881944,0.210106,95190.0,95179.0,0.00585451]
[1734962882145,0.210106,95190.0,95178.0,0.2159864]
[1734962882369,0.210106,95190.0,95180.0,0.00585461]
[1734962882542,0.210084,95200.0,95186.0,0.0779376]
[1734962882738,0.2101565,95206.0,95176.0,0.21029568]
[1734962882739,0.004,95190.0,95181.0,0.00585472]
[1734962882972,0.002,95190.0,95178.0,0.0779376]
[1734962883175,0.002,95190.0,95179.0,0.21598451]
[1734962883584,0.210099,95194.0,95179.0,0.21598451]
[1734962883873,0.210033,95223.0,95203.0,0.210077]
[1734962884087,0.16682199,95242.0,95205.0,0.0779376]
[1734962884294,0.210031,95224.0,95205.0,0.18192392]
[1734962884504,0.210021,95229.0,95205.0,0.18786611]
[1734962884933,0.210001,95238.0,95205.0,0.18786611]
[1734962885151,8.55e-05,95249.0,95205.0,0.4219164]
[1734962885356,0.0010855,95206.0,95205.0,0.42886611]
[1734962885564,8.55e-05,95206.0,95205.0,0.19292851]
[1734962885781,8.55e-05,95206.0,95205.0,0.27086611]
[1734962885955,0.0010855,95206.0,95205.0,0.19686611]
[1734962886165,8.55e-05,95206.0,95205.0,0.18786611]
[1734962886404,0.0010855,95206.0,95205.0,0.18786611]
[1734962886627,0.0010855,95206.0,95205.0,0.18986611]
[1734962887395,8.55e-05,95206.0,95205.0,0.18986611]
[1734962887798,8.55e-05,95206.0,95205.0,0.00594219]
[1734962888360,0.0010855,95206.0,95205.0,0.01494219]
[1734962888527,8.55e-05,95206.0,95205.0,0.00594219]
[1734962888730,0.210073,95205.0,95194.0,0.0779376]
[1734962888935,0.210082,95201.0,95194.0,0.0779376]
[1734962889092,0.210092,95197.0,95195.0,0.00459087]
[1734962889304,0.210077,95203.0,95192.0,0.0779376]
[1734962889510,0.210077,95203.0,95196.0,0.00459098]
[1734962889767,0.210077,95203.0,95192.0,0.0779376]
[1734962889969,0.25668509,95202.0,95183.0,0.00033068]
[1734962890177,0.42023,95186.0,95183.0,0.00033068]
[1734962890401,0.210115,95186.0,95183.0,0.00033068]
[1734962890654,0.42023,95186.0,95183.0,0.00033068]
[1734962891321,0.05013946,95201.0,95183.0,0.00033068]
[1734962891322,0.210099,95193.0,95183.0,0.00033068]
[1734962891524,8.55e-05,95206.0,95192.0,0.0779376]
[1734962891727,0.210076,95204.0,95192.0,0.0779376]
[1734962891944,0.210087,95199.0,95192.0,0.0779376]
[1734962892570,0.210087,95199.0,95191.0,0.0779376]
[1734962892779,0.210087,95199.0,95192.0,0.0789376]
[1734962892985,0.210087,95199.0,95192.0,0.001]
[1734962893190,8.55e-05,95206.0,95192.0,0.001]
[1734962893191,0.210097,95194.0,95192.0,0.001]
[1734962893452,0.210097,95194.0,95186.0,0.0779376]
[1734962893644,0.210087,95199.0,95192.0,0.001]
[1734962894046,0.210073,95205.0,95192.0,0.001]
[1734962894299,0.01077363,95204.0,95195.0,0.210095]
[1734962894513,0.210077,95203.0,95194.0,0.0779376]
[1734962895273,0.210087,95199.0,95195.0,0.00464726]
[1734962895456,0.210099,95193.0,95192.0,0.005]
[1734962895659,0.210099,95193.0,95186.0,0.0779376]
[1734962895864,0.210109,95189.0,95187.0,0.0779376]
[1734962896072,0.210109,95189.0,95187.0,0.08258403]
[1734962896272,0.210109,95189.0,95187.0,0.00464643]
[1734962896558,0.210112,95187.0,95183.0,0.00033068]
[1734962896770,0.420224,95187.0,95183.0,0.00033068]
[1734962897992,0.420224,95187.0,95183.0,0.00233068]
[1734962898204,0.420224,95187.0,95183.0,0.00033068]
[1734962898608,0.420224,95187.0,95183.0,0.00233068]
[1734962899223,0.420224,95187.0,95183.0,0.00333068]
[1734962899639,0.0630333,95186.0,95183.0,0.00333068]
[1734962899803,0.210117,95185.0,95183.0,0.00333068]
[1734962900009,0.10398632,95184.0,95183.0,0.00333068]
[1734962900793,0.10398632,95184.0,95183.0,0.00133068]
[1734962900997,0.10398632,95184.0,95183.0,0.00333068]
[1734962901398,0.10398632,95184.0,95183.0,0.00033068]
[1734962901602,0.10398632,95184.0,95183.0,0.00133068]
[1734962901874,0.19782433,95184.0,95183.0,0.00433068]
[1734962902081,0.19782433,95184.0,95183.0,0.00333068]
[1734962902257,0.10398632,95184.0,95183.0,0.00433068]
[1734962903083,0.12698632,95184.0,95183.0,0.00433068]
[1734962903651,0.37698632,95184.0,95183.0,0.00433068]
[1734962904046,0.37698632,95184.0,95183.0,0.00033068]
[1734962904252,0.50903504,95184.0,95183.0,0.00133068]
[1734962904454,0.51303504,95184.0,95183.0,0.00133068]
[1734962904651,0.11398632,95184.0,95183.0,0.00133068]
[1734962904858,0.11398632,95184.0,95183.0,0.07926828]
[1734962904859,0.01,95184.0,95183.0,0.07926828]
[1734962905067,0.01,95184.0,95183.0,0.34101139]
[1734962905276,0.006,95184.0,95183.0,0.33996083]
[1734962905477,0.09278327,95201.0,95200.0,0.4380216]
[1734962905686,0.09278327,95201.0,95200.0,0.54200792]
[1734962906337,8.55e-05,95206.0,95203.0,0.210077]
[1734962906699,8.55e-05,95206.0,95203.0,0.54200092]
[1734962907591,0.0010856,95204.0,95203.0,0.62990092]
[1734962908001,0.0010856,95204.0,95203.0,0.62090092]
[1734962908136,0.0010856,95204.0,95203.0,0.62290092]
[1734962908556,8.56e-05,95204.0,95203.0,0.62090092]
[1734962908763,8.56e-05,95204.0,95203.0,0.62382255]
[1734962909063,8.56e-05,95204.0,95203.0,0.62282255]
[1734962909511,8.56e-05,95204.0,95203.0,0.62382255]
[1734962910028,8.56e-05,95204.0,95203.0,0.62782255]
[1734962910229,8.56e-05,95204.0,95203.0,0.62382255]
[1734962910466,8.56e-05,95204.0,95203.0,0.72782255]
[1734962910805,8.56e-05,95204.0,95203.0,0.72382255]
[1734962911136,8.56e-05,95204.0,95203.0,0.72982255]
[1734962911341,8.56e-05,95204.0,95203.0,0.72882255]
[1734962911544,8.56e-05,95204.0,95203.0,0.72382255]
[1734962911749,6e-07,95204.0,95203.0,0.72782255]
[1734962911946,8.55e-05,95206.0,95205.0,0.2279376]
[1734962912175,0.22299312,95264.0,95205.0,1.30099692]
[1734962912386,0.209916,95276.0,95233.0,0.5156486]
[1734962912547,0.209916,95276.0,95233.0,0.61963492]
[1734962912771,0.209926,95272.0,95233.0,0.62149037]
[1734962912990,0.209916,95277.0,95233.0,0.72149037]
[1734962913201,0.209916,95277.0,95233.0,0.82149037]
[1734962913397,0.209916,95277.0,95233.0,0.87119037]
[1734962913639,0.0006192,95234.0,95233.0,0.87119037]
[1734962914676,0.0006192,95234.0,95233.0,0.77119037]
[1734962917553,8.55e-05,95278.0,95233.0,0.77119037]
[1734962917554,8.55e-05,95278.0,95233.0,1.44323804]
[1734962917799,0.00021436,95249.0,95248.0,0.64190192]
[1734962918048,0.00021436,95249.0,95248.0,0.72948879]
[1734962918279,0.00021436,95249.0,95248.0,0.85248879]
[1734962918986,0.00021436,95249.0,95248.0,1.38848879]
[1734962918987,3.6e-07,95249.0,95248.0,1.38848879]
[1734962919190,8.55e-05,95278.0,95277.0,0.2878516]
[1734962919393,0.00021428,95278.0,95277.0,0.54183792]
[1734962919596,0.00021428,95278.0,95277.0,0.66483792]
[1734962919792,0.00021428,95278.0,95277.0,1.20083792]
[1734962921039,0.00021428,95278.0,95277.0,1.07783792]
[1734962921310,0.00021428,95278.0,95277.0,1.08083792]
[1734962921510,0.00021428,95278.0,95277.0,1.08259639]
[1734962921739,0.00021428,95278.0,95277.0,1.08159639]
[1734962922094,0.00021428,95278.0,95277.0,0.87168239]
[1734962922884,0.00021428,95278.0,95277.0,0.00175847]
[1734962923084,0.00021428,95278.0,95277.0,0.00275847]
[1734962923490,0.00021428,95278.0,95277.0,0.00175847]
[1734962923730,0.00521428,95278.0,95277.0,0.00175847]
[1734962924168,0.00021428,95278.0,95277.0,0.00175847]
[1734962924512,0.00021428,95278.0,95277.0,0.54564597]
[1734962924709,0.00021428,95278.0,95277.0,0.54359639]
[1734962925323,0.00121428,95278.0,95277.0,0.54459639]
[1734962926124,0.00121428,95278.0,95277.0,0.54559639]
[1734962926325,0.00121428,95278.0,95277.0,1.28649639]
[1734962926528,0.00121428,95278.0,95277.0,1.15425879]
[1734962926529,0.00021428,95278.0,95277.0,1.15425879]
[1734962926967,0.00321428,95278.0,95277.0,1.33219639]
[1734962927162,0.00321428,95278.0,95277.0,1.43219639]
[1734962927332,0.00721428,95278.0,95277.0,1.43319639]
[1734962927537,0.00721428,95278.0,95277.0,1.43219639]
[1734962927757,2.8e-07,95278.0,95277.0,1.44671578]
[1734962927966,2.8e-07,95278.0,95277.0,1.44871578]
[1734962928621,8.54e-05,95284.0,95283.0,0.0779376]
[1734962928826,8.54e-05,95284.0,95283.0,0.33471835]
[1734962929113,8.54e-05,95284.0,95283.0,0.33366917]
[1734962929324,8.54e-05,95284.0,95283.0,0.54357017]
[1734962929657,8.54e-05,95284.0,95283.0,0.64357017]
[1734962930219,8.54e-05,95284.0,95283.0,0.76657017]
[1734962930559,0.0010854,95284.0,95283.0,0.79904051]
[1734962930777,0.0010854,95284.0,95283.0,0.76657017]
[1734962931383,0.0010854,95284.0,95283.0,1.30257017]
[1734962931779,0.0010854,95284.0,95283.0,1.20257017]
[1734962932029,0.0010854,95284.0,95283.0,1.30257017]
[1734962932775,0.0010854,95284.0,95283.0,1.30668222]
[1734962933326,4e-07,95284.0,95283.0,0.77068222]
[1734962934329,1e-06,95286.0,95285.0,0.4509376]
[1734962934620,1e-06,95286.0,95285.0,0.61480973]
[1734962934922,1e-06,95286.0,95285.0,0.56077702]
[1734962935379,1e-06,95286.0,95285.0,0.62066283]
[1734962935799,1e-06,95286.0,95285.0,0.58819249]
[1734962936021,1e-06,95286.0,95285.0,0.56077702]
[1734962936216,1e-06,95286.0,95285.0,0.58819249]
[1734962936425,1e-06,95286.0,95285.0,0.62066283]
[1734962936764,1e-06,95286.0,95285.0,0.56077702]
[1734962936974,0.001001,95286.0,95285.0,0.56377702]
[1734962937188,0.001001,95286.0,95285.0,0.57177702]
[1734962937396,8.56e-05,95301.0,95299.0,0.5608026]
[1734962937603,8.56e-05,95301.0,95299.0,0.66478892]
[1734962937833,8.56e-05,95301.0,95299.0,0.66649893]
[1734962939630,0.00012,95315.0,95305.0,0.3279376]
[1734962939824,0.00012,95315.0,95305.0,0.66477592]
[1734962940032,0.01458055,95306.0,95305.0,0.66647272]
[1734962940626,0.01458055,95306.0,95305.0,1.28037272]
[1734962940792,0.01458055,95306.0,95305.0,1.28537272]
[1734962941007,0.01458055,95306.0,95305.0,1.28737272]
[1734962941359,8.56e-05,95330.0,95305.0,1.28737272]
[1734962941360,8.56e-05,95330.0,95318.0,0.1]
[1734962941538,4e-07,95330.0,95329.0,0.74402292]
[1734962941679,4e-07,95339.0,95338.0,0.5377166]
[1734962941897,0.00012348,95339.0,95338.0,0.76470292]
[1734962942109,0.00012348,95339.0,95338.0,1.30232708]
[1734962942110,4.8e-07,95339.0,95338.0,1.30232708]
[1734962942726,0.0775,95387.0,95373.0,0.4376396]
[1734962942938,0.0775,95387.0,95373.0,0.54162592]
[1734962943173,0.00020866,95374.0,95373.0,0.54317309]
[1734962943930,0.00120866,95374.0,95373.0,0.54317309]
[1734962944133,0.00320866,95374.0,95373.0,0.54317309]
[1734962944381,0.00320866,95374.0,95373.0,0.54162592]
[1734962945137,0.00320866,95374.0,95373.0,0.66462592]
[1734962945336,0.00320866,95374.0,95373.0,1.07762592]
[1734962945546,0.00120866,95374.0,95373.0,1.07762592]
[1734962946030,0.00020866,95374.0,95373.0,0.54262592]
[1734962946447,0.00020866,95374.0,95373.0,0.54362592]
[1734962946652,0.00020866,95374.0,95373.0,0.54162592]
[1734962946862,0.00020866,95374.0,95373.0,0.54362592]
[1734962947312,0.00020866,95374.0,95373.0,0.54162592]
[1734962947463,0.00020866,95374.0,95373.0,0.54662592]
[1734962947899,0.00020866,95374.0,95373.0,0.54262592]
[1734962948943,0.00020866,95374.0,95373.0,0.54162592]